bitfinex-derivatives/quotes_ETHF0:USTF0_20241007
["timestamp","ask_amount","ask_price","bid_price","bid_amount"]
[1728296569588,5.5,2443.2,2443.1,0.40937]
[1728296569783,5.5,2443.2,2443.1,1.25881098]
[1728296570091,5.5,2443.2,2443.1,0.84944098]
[1728296570278,5.90936,2443.2,2443.1,0.84944098]
[1728296570886,5.90936,2443.2,2443.0,0.40938]
[1728296571091,5.90936,2443.2,2443.1,0.84944098]
[1728296572086,5.90936,2443.2,2442.7,0.81603]
[1728296572087,0.40941,2442.9,2442.7,0.81603]
[1728296572293,5.90939,2443.0,2442.9,0.84944098]
[1728296573087,5.90939,2443.0,2442.7,0.81604]
[1728296573088,0.40942,2442.9,2442.7,0.81604]
[1728296573286,0.40942,2442.9,2442.7,1.66548098]
[1728296573483,0.40942,2442.8,2442.7,1.25604098]
[1728296573891,5.5,2443.0,2442.7,1.25604098]
[1728296574092,7.3014,2442.9,2442.5,0.3275]
[1728296574393,0.40961,2441.7,2441.6,3.2078]
[1728296574599,8.74709459,2441.7,2441.6,3.2078]
[1728296574798,5.5,2441.9,2441.6,4.05724098]
[1728296575003,5.5,2441.9,2441.7,0.84944098]
[1728296575303,5.5,2441.9,2441.6,3.61742]
[1728296575304,5.90959,2441.9,2441.6,3.61742]
[1728296575491,5.90959,2441.9,2441.7,0.84944098]
[1728296575492,5.5,2441.9,2441.7,0.84944098]
[1728296575689,5.5,2441.9,2441.8,0.84944098]
[1728296575889,5.5,2441.9,2441.6,3.2078]
[1728296576088,5.90957,2441.9,2441.8,0.3276]
[1728296576599,16.00477,2441.9,2441.8,0.3276]
[1728296577288,5.90957,2441.9,2441.8,0.3276]
[1728296577497,10.00477,2441.9,2441.8,0.3276]
[1728296577698,10.00477,2441.9,2441.4,1.22575]
[1728296577699,1.02398,2441.8,2441.4,1.22575]
[1728296577894,0.40963,2441.6,2441.4,2.07519098]
[1728296578090,0.40963,2441.6,2441.4,1.66554098]
[1728296578400,6.52396,2441.9,2441.5,0.84944098]
[1728296578699,1.02401,2441.8,2441.4,0.8161]
[1728296578899,0.40961,2441.7,2441.6,0.84944098]
[1728296579696,4.0952,2441.7,2441.5,0.3276]
[1728296579901,4.50562,2441.6,2441.5,0.3276]
[1728296580103,5.90962,2441.6,2441.5,0.3276]
[1728296580406,10.00562,2441.6,2441.5,0.3276]
[1728296580796,9.596,2441.6,2441.3,0.40967]
[1728296581004,5.90963,2441.6,2441.5,0.84944098]
[1728296582096,8.60209,2441.5,2440.5,0.4098]
[1728296582296,9.11756,2440.8,2440.6,0.84944098]
[1728296582496,9.11752,2441.1,2440.8,0.40976]
[1728296582705,9.11751,2441.1,2441.0,0.84944098]
[1728296583296,0.40973,2441.0,2440.6,0.3277]
[1728296583492,12.8046,2441.1,2440.8,0.84944098]
[1728296583493,8.7078,2441.1,2440.8,0.84944098]
[1728296583696,8.7078,2441.1,2440.7,0.84944098]
[1728296583697,0.40977,2440.8,2440.7,0.84944098]
[1728296583906,0.40978,2440.7,2440.6,1.17714098]
[1728296584213,7.3046,2440.7,2440.3,0.8044]
[1728296584402,0.40983,2440.4,2440.3,0.84944098]
[1728296584902,5.5,2440.5,2440.3,0.84944098]
[1728296585101,5.5,2440.5,2440.4,0.84944098]
[1728296585297,5.5,2440.5,2440.2,0.84944098]
[1728296585512,0.40985,2440.3,2440.0,0.2]
[1728296585707,7.367,2440.8,2440.2,0.84944098]
[1728296585907,0.4098,2440.6,2440.3,0.80504]
[1728296586107,7.367,2440.8,2440.7,0.84944098]
[1728296586307,7.367,2440.8,2440.3,0.80504]
[1728296586308,5.5,2440.8,2440.5,0.84944098]
[1728296586500,0.40978,2440.7,2440.6,0.84944098]
[1728296588512,4.0976,2440.7,2440.3,0.3952]
[1728296588711,0.40983,2440.4,2440.3,1.24464098]
[1728296589205,0.40983,2440.4,2439.3,1.43339]
[1728296589206,0.40988,2440.1,2439.5,3.2078]
[1728296589407,9.11768,2440.1,2439.4,0.4226]
[1728296589609,0.40998,2439.5,2439.4,0.4226]
[1728296590011,0.40998,2439.5,2439.1,3.6247]
[1728296590012,4.0992,2439.5,2439.1,3.6247]
[1728296590206,3.2078,2439.8,2439.4,4.05724098]
[1728296590407,3.2078,2439.8,2439.7,1.25938098]
[1728296591211,3.2078,2439.8,2439.7,1.17734098]
[1728296591419,3.2078,2439.8,2439.7,1.58728098]
[1728296591918,3.61773,2439.8,2439.7,1.17734098]
[1728296592312,3.2078,2439.8,2439.7,1.58728098]
[1728296593321,0.40981,2440.5,2439.7,13.6341]
[1728296593516,8.7078,2440.6,2440.5,0.84944098]
[1728296593517,9.11759,2440.6,2440.5,0.84944098]
[1728296594406,12.8054,2440.6,2440.1,3.2078]
[1728296594617,0.40981,2440.5,2440.4,0.84944098]
[1728296595418,0.40981,2440.5,2440.0,3.2078]
[1728296595419,0.40987,2440.2,2440.0,3.2078]
[1728296595617,5.5,2440.4,2440.3,0.84944098]
[1728296595818,5.90983,2440.4,2440.3,0.84944098]
[1728296596715,5.90983,2440.4,2439.9,0.4225]
[1728296596716,0.40987,2440.2,2439.9,0.8324]
[1728296596912,0.40987,2440.2,2440.1,0.84944098]
[1728296597616,0.40988,2440.1,2439.8,0.3982]
[1728296597815,5.5,2440.1,2439.8,0.84944098]
[1728296598016,0.40991,2439.9,2439.8,0.84944098]
[1728296598225,3.6004,2440.0,2439.8,0.84944098]
[1728296598520,4.0103,2440.0,2439.8,0.84944098]
[1728296598923,4.01029,2440.0,2439.9,0.84944098]
[1728296599820,3.2078,2440.0,2439.9,0.84944098]
[1728296600020,0.40979,2440.6,2440.3,0.40983]
[1728296600318,5.5,2440.9,2440.5,0.84944098]
[1728296600519,5.5,2440.9,2440.8,1.25920098]
[1728296600719,5.5,2441.2,2441.1,0.40971]
[1728296601017,5.5,2441.2,2440.7,1.02443]
[1728296601218,5.90969,2441.2,2441.1,0.84944098]
[1728296601616,5.5,2441.2,2441.1,0.84944098]
[1728296601816,5.5,2441.2,2441.1,1.25915098]
[1728296602215,0.4077,2441.8,2441.1,1.25915098]
[1728296602216,20.46329,2443.8,2441.2,0.40969]
[1728296602421,8.7078,2442.2,2441.3,0.8442]
[1728296602634,8.7078,2442.2,2441.4,4.23193]
[1728296602823,3.2078,2442.2,2442.1,0.84944098]
[1728296603223,3.2078,2442.2,2442.1,1.25194098]
[1728296603525,1.43344,2442.1,2441.3,0.4288]
[1728296603731,8.7078,2441.8,2441.6,0.84944098]
[1728296604031,0.40961,2441.7,2441.3,0.83847]
[1728296604232,9.1174,2441.8,2441.7,0.84944098]
[1728296604428,9.1174,2441.8,2441.2,3.6103]
[1728296604429,1.02403,2441.7,2441.2,0.4025]
[1728296604635,5.5,2441.3,2441.2,1.25194098]
[1728296604926,5.5,2441.3,2441.2,0.4025]
[1728296605234,5.5,2441.5,2441.3,0.40967]
[1728296605427,5.5,2441.5,2441.4,0.84944098]
[1728296605624,1.42273,2442.0,2441.4,0.84944098]
[1728296605625,3.2078,2442.5,2441.4,5.08136098]
[1728296605826,0.3988,2443.3,2442.5,1.02369]
[1728296606132,3.2078,2443.5,2442.7,8.7078]
[1728296606430,3.2078,2443.5,2443.0,3.2078]
[1728296606628,3.2078,2443.5,2443.1,0.40937]
[1728296606839,3.61711,2443.5,2443.2,0.40934]
[1728296607130,3.2078,2443.5,2443.2,0.40934]
[1728296607332,3.2078,2443.5,2443.3,0.40934]
[1728296607521,10.42082,2444.1,2443.4,4.0928]
[1728296607724,0.40927,2443.7,2443.4,0.40931]
[1728296607924,0.40927,2443.7,2443.4,3.61711]
[1728296608122,0.40926,2443.8,2443.5,0.4093]
[1728296608324,0.40926,2443.8,2443.4,3.2078]
[1728296608325,1.02306,2444.0,2443.4,3.2078]
[1728296608531,3.2078,2443.7,2443.4,0.40932]
[1728296609634,9.80702,2444.1,2443.6,0.40929]
[1728296610527,9.80701,2444.1,2443.7,0.40927]
[1728296610721,9.3978,2444.1,2443.5,3.2078]
[1728296611232,9.3978,2444.1,2443.8,0.40925]
[1728296611539,9.3978,2444.1,2443.6,0.3949]
[1728296611827,9.3978,2444.1,2443.8,0.40925]
[1728296612226,3.2078,2444.1,2443.9,0.40923]
[1728296612427,9.80701,2444.1,2443.7,0.40927]
[1728296612835,9.80701,2444.1,2443.6,0.3949]
[1728296612836,0.40922,2444.0,2443.6,0.80418]
[1728296613027,9.80702,2444.1,2443.7,0.40927]
[1728296613227,9.3978,2444.1,2443.6,0.3949]
[1728296613429,9.3978,2444.1,2443.8,0.40924]
[1728296613630,9.80701,2444.1,2443.6,0.3949]
[1728296614237,9.3978,2444.1,2443.7,0.40926]
[1728296614538,9.80701,2444.1,2443.7,0.40927]
[1728296614732,9.3978,2444.1,2443.6,0.3949]
[1728296614930,0.40927,2443.8,2443.6,0.3949]
[1728296615740,9.3978,2444.1,2443.6,0.3949]
[1728296615941,0.40926,2443.8,2443.6,0.3949]
[1728296616334,9.3978,2444.1,2443.6,0.3949]
[1728296616541,0.40927,2443.8,2443.6,0.3949]
[1728296616834,0.40926,2443.8,2443.6,0.3949]
[1728296617032,6.19,2443.8,2443.2,3.61715]
[1728296617233,6.19,2443.5,2443.2,3.2078]
[1728296617434,0.812,2445.7,2443.2,3.2078]
[1728296617435,0.40905,2445.1,2444.6,0.40912]
[1728296617632,3.61685,2445.1,2444.7,0.40909]
[1728296617838,0.4156,2445.3,2444.4,3.2078]
[1728296618038,0.40904,2445.1,2444.7,0.7363]
[1728296618436,0.4156,2445.3,2444.7,0.3272]
[1728296618437,1.43816,2445.3,2444.7,0.3272]
[1728296618632,0.40907,2445.0,2444.7,0.3272]
[1728296619037,0.40908,2444.9,2444.7,0.3272]
[1728296619340,3.2078,2445.1,2444.7,0.3272]
[1728296619740,0.40906,2445.0,2444.7,0.3272]
[1728296620634,0.40906,2445.0,2444.7,0.7363]
[1728296620944,0.40906,2445.0,2444.7,0.3272]
[1728296621242,0.40908,2444.9,2444.7,0.3272]
[1728296621741,3.2078,2445.1,2444.8,0.40908]
[1728296621742,3.61684,2445.1,2444.8,0.40908]
[1728296621951,0.40906,2445.0,2444.7,0.7363]
[1728296622835,1.43815,2445.3,2444.7,0.3272]
[1728296622836,0.40908,2444.9,2444.7,0.3272]
[1728296623236,0.40906,2445.0,2444.7,0.7363]
[1728296623740,0.40907,2445.0,2444.7,0.3272]
[1728296623941,0.40906,2445.0,2444.7,0.7363]
[1728296624442,0.40908,2444.9,2444.7,0.3272]
[1728296624750,0.4156,2445.3,2444.7,0.3272]
[1728296625049,0.40906,2445.0,2444.8,0.40908]
[1728296625258,1.43814,2445.3,2444.8,0.40908]
[1728296625547,0.40905,2445.0,2444.8,0.40908]
[1728296625848,0.40905,2445.0,2444.7,0.73629]
[1728296626544,0.40907,2445.0,2444.7,0.73629]
[1728296626741,3.2078,2445.1,2444.7,0.73629]
[1728296627049,3.2078,2445.1,2444.7,0.3272]
[1728296627240,0.40908,2444.9,2444.7,0.3272]
[1728296627542,0.40908,2444.9,2444.7,0.7363]
[1728296628342,0.40908,2444.9,2444.7,0.3272]
[1728296628567,0.40909,2444.8,2444.7,0.3272]
[1728296629043,0.40909,2444.8,2444.7,4.4176]
[1728296629551,13.70729,2444.8,2444.7,0.3272]
[1728296629842,0.4091,2444.7,2444.3,0.4018]
[1728296630045,5.90914,2444.6,2444.3,0.81096]
[1728296630239,5.90914,2444.6,2444.4,0.40915]
[1728296630440,5.90914,2444.6,2444.3,0.81096]
[1728296630648,1.941,2445.2,2444.3,0.81096]
[1728296630649,3.2078,2445.1,2445.0,0.40905]
[1728296630944,2.04435,2446.2,2445.0,0.40905]
[1728296630945,8.7078,2445.9,2445.0,1.02264]
[1728296631143,3.2078,2445.9,2445.2,3.2078]
[1728296631339,1.02231,2445.8,2445.3,0.40899]
[1728296631535,1.02231,2445.8,2445.1,0.4222]
[1728296631536,0.40895,2445.7,2445.4,0.40897]
[1728296631739,1.02231,2445.8,2445.4,0.40897]
[1728296631949,3.2078,2445.9,2445.2,0.2959]
[1728296632154,0.40895,2445.7,2445.4,0.40898]
[1728296632445,1.02231,2445.8,2445.2,0.2959]
[1728296632748,0.40894,2445.7,2445.2,3.5037]
[1728296632949,0.40894,2445.7,2445.2,0.2959]
[1728296633143,4.23008,2445.9,2445.4,0.40898]
[1728296633338,0.40896,2445.6,2445.3,0.40899]
[1728296633537,3.2078,2445.9,2445.2,3.5037]
[1728296633745,0.40897,2445.6,2445.3,0.40899]
[1728296634151,0.40897,2445.5,2445.3,4.49859]
[1728296634348,3.2078,2445.9,2445.3,1.02252]
[1728296634645,0.40896,2445.6,2445.4,0.40898]
[1728296635053,0.40896,2445.6,2445.4,4.49778]
[1728296635449,0.40897,2445.5,2445.4,4.0888]
[1728296635646,1.02232,2445.8,2445.4,4.0888]
[1728296635846,0.40896,2445.6,2445.4,0.40898]
[1728296636251,0.40896,2445.6,2445.4,4.49778]
[1728296637057,3.2078,2445.9,2445.5,0.40896]
[1728296637058,0.40895,2445.7,2445.5,0.40896]
[1728296637248,3.2078,2445.9,2445.3,0.409]
[1728296637452,0.40898,2445.5,2445.3,0.409]
[1728296637952,0.40898,2445.5,2445.4,4.0896]
[1728296638157,0.40898,2445.5,2445.3,4.4986]
[1728296638348,0.81746012,2445.7,2445.3,4.4986]
[1728296638551,0.40899,2445.4,2445.3,0.409]
[1728296638951,0.40899,2445.4,2445.3,10.4986]
[1728296639154,0.40899,2445.4,2445.3,4.4986]
[1728296639449,0.40899,2445.4,2445.3,10.4986]
[1728296639851,0.40899,2445.4,2445.3,4.4986]
[1728296640957,0.409,2445.4,2445.3,0.40899]
[1728296641158,3.2078,2445.5,2445.2,0.2959]
[1728296641460,0.409,2445.3,2445.2,0.70491]
[1728296641957,3.2078,2445.5,2445.2,4.3855]
[1728296642146,3.2078,2445.5,2445.2,0.2959]
[1728296642457,0.40899,2445.4,2445.3,0.409]
[1728296642855,0.40899,2445.4,2445.3,4.4986]
[1728296644058,3.2078,2445.5,2445.2,0.2959]
[1728296644356,0.40899,2445.4,2445.3,0.40899]
[1728296644551,1.02239,2445.6,2445.3,0.40899]
[1728296644756,0.409,2445.3,2445.2,0.70491]
[1728296645259,0.409,2445.3,2445.2,0.70492]
[1728296645455,0.409,2445.3,2445.2,0.2959]
[1728296647163,3.6168,2445.3,2445.2,0.2959]
[1728296647658,2.5931358,2445.3,2445.2,0.2959]
[1728296648758,0.409,2445.4,2445.2,0.2959]
[1728296648957,0.409,2445.4,2445.2,0.70491]
[1728296649357,0.409,2445.4,2445.3,0.409]
[1728296649556,0.409,2445.4,2445.2,0.2959]
[1728296649557,0.40898,2445.5,2445.2,0.2959]
[1728296649763,1.47076,2445.7,2445.2,4.3855]
[1728296650061,3.6511,2445.8,2445.7,0.40894]
[1728296650062,4.06003,2445.8,2445.7,0.40894]
[1728296650262,4.06003,2445.8,2445.6,0.40894]
[1728296650462,4.06003,2445.8,2445.3,6.52252]
[1728296650463,3.6511,2445.8,2445.4,1.5160042]
[1728296650661,3.6511,2445.8,2445.5,1.0605042]
[1728296650855,0.40895,2445.7,2445.6,0.40895]
[1728296651064,0.40895,2445.7,2445.5,1.0605042]
[1728296651257,0.40895,2445.6,2445.5,1.4694642]
[1728296651463,0.40895,2445.6,2445.5,3.17388273]
[1728296651763,0.40895,2445.6,2445.5,2.6417169]
[1728296651963,0.40895,2445.6,2445.5,1.06436229]
[1728296652157,0.40895,2445.6,2445.5,0.2956]
[1728296653568,0.40895,2445.6,2444.9,1.06436229]
[1728296653569,15.5888,2445.6,2444.9,1.06436229]
[1728296653766,0.40915,2444.4,2444.3,0.444]
[1728296654067,8.7078,2445.0,2444.3,0.444]
[1728296654068,4.23045,2445.0,2444.3,0.85317]
[1728296654369,0.40915,2444.5,2444.3,0.85317]
[1728296654562,1.02277,2444.7,2444.3,0.444]
[1728296654766,1.4664,2444.9,2444.3,0.444]
[1728296654962,1.4664,2444.9,2444.4,0.40915]
[1728296655165,0.40914,2444.5,2444.3,0.85317]
[1728296655469,1.4664,2444.9,2444.4,0.40915]
[1728296655470,0.40913,2444.6,2444.4,0.40915]
[1728296655666,0.4437,2444.9,2444.3,0.444]
[1728296655864,0.40914,2444.5,2444.3,0.85316]
[1728296656270,0.40914,2444.5,2444.3,4.94436]
[1728296656662,0.4437,2444.9,2444.3,4.5352]
[1728296656867,0.40915,2444.4,2444.3,0.444]
[1728296657058,0.40915,2444.5,2444.3,0.85316]
[1728296657266,0.40915,2444.5,2444.4,0.40915]
[1728296657462,1.02278,2444.7,2444.3,4.5352]
[1728296657772,0.40915,2444.5,2444.3,0.85316]
[1728296657963,0.40915,2444.4,2444.3,0.85316]
[1728296658165,0.40915,2444.4,2444.3,0.444]
[1728296658359,1.02282,2444.6,2444.3,4.5352]
[1728296658581,0.40915,2444.4,2444.3,0.85316]
[1728296659073,0.40915,2444.4,2444.3,4.94436]
[1728296659267,0.40915,2444.4,2443.8,0.40925]
[1728296659268,1.02289,2444.4,2443.8,0.40925]
[1728296659570,1.02289,2444.4,2443.7,0.4612]
[1728296659571,0.40926,2443.8,2443.7,0.4612]
[1728296661370,0.4569,2444.2,2444.0,0.40921]
[1728296661371,0.40919,2444.2,2444.0,0.40921]
[1728296661565,3.2078,2444.7,2443.7,10.5532]
[1728296661566,3.2078,2445.3,2444.1,5.5]
[1728296661768,1.02285,2444.5,2443.9,8.7078]
[1728296662067,3.2078,2444.6,2443.9,0.40923]
[1728296662068,0.40921,2444.1,2443.9,0.40923]
[1728296662274,0.40923,2444.0,2443.8,0.85714]
[1728296662467,0.40921,2444.1,2443.9,0.40922]
[1728296662661,1.02294,2444.3,2443.8,0.4479]
[1728296662871,0.4336,2444.4,2443.8,0.4479]
[1728296663073,0.40922,2444.1,2443.9,0.40923]
[1728296663573,0.40922,2444.1,2444.0,4.092]
[1728296663881,0.40924,2443.9,2443.8,0.4479]
[1728296664177,0.40926,2443.8,2443.7,0.4612]
[1728296664674,0.40926,2443.8,2443.7,4.5532]
[1728296665065,0.40926,2443.8,2443.7,0.4612]
[1728296665269,3.2078,2444.0,2443.2,3.2078]
[1728296665466,0.4093,2443.6,2443.5,0.4093]
[1728296666082,0.4093,2443.6,2443.5,4.5021]
[1728296666975,1.5387,2443.9,2443.1,0.4523]
[1728296666976,1.02321,2443.7,2443.1,0.4523]
[1728296667167,0.40934,2443.4,2443.1,0.4523]
[1728296667366,0.40934,2443.4,2443.3,0.40934]
[1728296667776,0.487,2443.8,2443.3,10.0928]
[1728296667981,0.487,2443.8,2442.7,4.23139]
[1728296667982,1.02323,2443.6,2442.7,4.23139]
[1728296668274,0.40929,2443.7,2443.6,0.40929]
[1728296668578,0.40929,2443.7,2443.6,4.092]
[1728296668869,0.40929,2443.7,2443.3,3.2078]
[1728296668870,0.40931,2443.5,2443.4,0.4993]
[1728296669275,0.40931,2443.5,2443.4,11.00142]
[1728296669675,0.40931,2443.5,2443.4,0.4993]
[1728296671868,0.40931,2443.5,2443.4,5.00142]
[1728296672065,0.487,2443.8,2443.4,10.5921]
[1728296672273,0.40927,2443.7,2443.6,0.40929]
[1728296672685,0.40927,2443.7,2443.6,4.50129]
[1728296672872,0.40927,2443.7,2443.6,4.092]
[1728296673066,0.487,2443.8,2443.4,0.4993]
[1728296673271,0.40928,2443.7,2443.6,0.40928]
[1728296673472,3.61681,2445.3,2445.1,0.40903]
[1728296673672,3.61681,2445.3,2444.7,0.40909]
[1728296673673,4.0896,2445.2,2444.7,0.40909]
[1728296673875,0.93375,2445.1,2444.7,0.40909]
[1728296674172,0.5247,2445.1,2444.7,0.40909]
[1728296674576,0.5247,2445.1,2444.6,3.2078]
[1728296674776,0.5247,2445.1,2444.7,0.40909]
[1728296674981,0.93374,2445.1,2444.6,3.61691]
[1728296675175,0.5247,2445.1,2444.6,3.2078]
[1728296675382,0.5247,2445.1,2444.9,3.2078]
[1728296675676,0.5247,2445.1,2445.0,0.40905]
[1728296675885,0.5247,2445.1,2445.0,4.49865]
[1728296676771,0.40899,2445.5,2445.0,4.0896]
[1728296676974,0.9626,2445.6,2444.9,3.2078]
[1728296677182,0.9626,2445.6,2445.0,0.40905]
[1728296677183,0.40901,2445.3,2445.0,0.40905]
[1728296677378,0.40901,2445.3,2445.1,0.40904]
[1728296677783,0.40901,2445.3,2444.9,3.2078]
[1728296677985,1.98501,2445.6,2445.0,0.40905]
[1728296677986,0.40902,2445.2,2445.0,0.40905]
[1728296678181,1.02245,2445.5,2445.0,0.40905]
[1728296678182,0.40901,2445.3,2445.0,0.40905]
[1728296678487,0.40905,2445.1,2444.8,0.40908]
[1728296678678,0.481,2445.0,2444.6,3.2078]
[1728296678880,0.481,2445.0,2444.9,0.40907]
[1728296679079,0.24119732,2446.0,2444.9,8.7078]
[1728296679380,0.5074,2445.8,2445.7,0.40894]
[1728296679581,0.5074,2445.8,2445.6,0.40895]
[1728296679978,0.5074,2445.8,2445.6,0.40894]
[1728296681290,0.5074,2445.8,2445.2,5.5]
[1728296681291,0.5074,2445.8,2445.2,3.2078]
[1728296681886,0.40902,2445.3,2445.0,3.61685]
[1728296682089,0.40902,2445.3,2444.9,0.40906]
[1728296682283,9.73015,2445.7,2444.7,3.2078]
[1728296682590,1.02245,2445.5,2444.7,3.2078]
[1728296682889,0.4747,2445.4,2444.7,3.2078]
[1728296683082,0.4747,2445.4,2444.9,0.40906]
[1728296683083,0.40902,2445.3,2444.9,0.40906]
[1728296683283,0.92212,2445.2,2444.9,0.40906]
[1728296683483,0.5131,2445.2,2445.0,0.40905]
[1728296683681,0.92212,2445.2,2445.0,0.40905]
[1728296683985,0.5131,2445.2,2445.0,0.40905]
[1728296684187,0.40905,2445.1,2444.9,0.40907]
[1728296684392,0.92214,2445.2,2444.9,0.40906]
[1728296684589,0.5131,2445.2,2445.0,0.40904]
[1728296684790,0.92213,2445.2,2445.0,0.40904]
[1728296685186,0.5131,2445.2,2444.7,3.2078]
[1728296685590,0.88369,2445.4,2445.3,0.409]
[1728296685893,0.89126,2445.6,2445.3,3.2078]
[1728296686087,0.89126,2445.6,2445.4,0.40898]
[1728296686480,0.40897,2445.5,2445.3,3.2078]
[1728296686693,0.4823,2445.6,2445.3,3.2078]
[1728296686891,0.89126,2445.6,2445.4,0.40898]
[1728296687195,0.4823,2445.6,2445.5,0.40897]
[1728296687397,0.89125,2445.6,2445.4,0.40897]
[1728296687582,0.4823,2445.6,2445.5,0.40897]
[1728296687987,0.40891,2445.9,2445.7,0.40893]
[1728296688604,0.4823,2446.0,2445.6,3.2078]
[1728296688605,1.50453,2446.0,2445.6,3.2078]
[1728296688791,0.40892,2445.8,2445.7,0.40893]
[1728296689193,3.2078,2446.6,2445.7,4.094]
[1728296689394,6.24761961,2448.3,2446.5,8.7078]
[1728296689395,3.2078,2447.6,2446.5,8.7078]
[1728296689594,0.9763,2447.8,2447.4,5.5]
[1728296689595,0.06412898,2447.5,2447.4,5.5]
[1728296689898,0.9763,2447.8,2447.5,0.40863]
[1728296690394,0.9763,2447.8,2447.4,8.7078]
[1728296690695,0.9763,2447.8,2447.6,0.40861]
[1728296690892,0.9763,2447.8,2447.5,0.40863]
[1728296691084,0.9763,2447.8,2447.4,8.7078]
[1728296691287,0.4925,2447.8,2447.6,0.40861]
[1728296691797,0.4085,2448.4,2448.0,0.40855]
[1728296692096,0.4085,2448.4,2448.0,9.11635]
[1728296692301,0.9919,2448.5,2448.0,3.2078]
[1728296692494,0.40851,2448.3,2448.0,3.2078]
[1728296692689,0.9919,2448.5,2448.0,3.2078]
[1728296692894,0.40851,2448.3,2448.0,3.61635]
[1728296693096,3.2078,2448.3,2447.4,3.2078]
[1728296693393,3.2078,2448.0,2447.1,3.2078]
[1728296693587,0.9919,2448.5,2446.7,3.2078]
[1728296693588,3.2078,2447.7,2446.7,3.2078]
[1728296693795,0.40872,2447.1,2446.7,3.61656]
[1728296693995,0.40872,2447.1,2446.8,0.40875]
[1728296694189,0.40872,2447.0,2446.7,3.61656]
[1728296694393,1.0216,2447.5,2446.7,3.61656]
[1728296694394,0.40871,2447.1,2446.8,0.40875]
[1728296694592,1.0216,2447.5,2446.8,0.40875]
[1728296694788,1.0329,2447.6,2447.0,0.40871]
[1728296694789,0.5167,2447.2,2447.0,0.40871]
[1728296694994,0.5167,2447.2,2447.1,0.4087]
[1728296696110,0.5167,2447.2,2447.0,3.2078]
[1728296696596,0.5167,2447.2,2446.6,3.7239]
[1728296696800,0.5167,2447.2,2446.8,0.40875]
[1728296696801,0.40873,2447.0,2446.8,0.40875]
[1728296696998,0.40871,2447.1,2446.8,0.40875]
[1728296697201,0.92539,2447.2,2447.0,3.61651]
[1728296697395,0.92539,2447.2,2446.7,3.2078]
[1728296697597,0.9254,2447.2,2446.9,0.40873]
[1728296697990,0.4087,2447.1,2446.9,0.40873]
[1728296698195,0.4087,2447.1,2447.0,3.2078]
[1728296698392,0.5167,2447.2,2447.0,3.2078]
[1728296698594,0.4087,2447.1,2447.0,3.2078]
[1728296699700,0.5167,2447.2,2446.7,3.61656]
[1728296700095,0.40873,2447.0,2446.7,3.61656]
[1728296700302,0.40873,2447.0,2446.8,0.40875]
[1728296700703,0.5167,2447.2,2446.7,3.61656]
[1728296700903,0.40874,2446.9,2446.7,3.61656]
[1728296701098,0.40874,2446.9,2446.7,3.2078]
[1728296701298,0.40874,2446.9,2446.7,7.70376]
[1728296701504,0.40874,2446.9,2446.8,0.40875]
[1728296701905,0.40874,2446.9,2446.8,4.49595]
[1728296702408,0.40874,2446.9,2446.8,4.0872]
[1728296702904,1.53844,2447.2,2447.0,0.40871]
[1728296702905,0.5167,2447.2,2447.0,0.40871]
[1728296703100,0.40871,2447.1,2447.0,3.2078]
[1728296703303,0.40874,2446.9,2446.8,0.40874]
[1728296703497,0.40874,2446.9,2446.7,3.2078]
[1728296703498,0.5167,2447.2,2446.7,3.2078]
[1728296703703,0.40873,2447.0,2446.9,0.40873]
[1728296704199,0.40873,2447.0,2446.9,0.40874]
[1728296704395,0.40875,2446.8,2446.7,3.2078]
[1728296704701,0.40875,2446.8,2446.7,3.61657]
[1728296704902,0.40875,2446.8,2446.7,7.70377]
[1728296705697,0.40875,2446.8,2446.7,7.295]
[1728296705898,0.40875,2446.8,2446.7,3.2078]
[1728296706094,4.49595,2446.8,2446.7,3.2078]
[1728296706309,4.49595,2446.8,2446.0,0.9772]
[1728296706310,0.4088,2446.5,2446.4,3.2078]
[1728296707003,0.4741,2446.6,2446.0,3.7173]
[1728296707004,0.40887,2446.1,2446.0,3.7173]
[1728296707195,0.40886,2446.2,2446.0,3.7173]
[1728296707502,0.40887,2446.1,2446.0,3.7173]
[1728296707701,0.40887,2446.1,2446.0,4.12619]
[1728296707900,0.4741,2446.6,2446.0,7.8053]
[1728296708097,0.40883,2446.4,2446.3,3.2078]
[1728296708300,0.40885,2446.3,2446.2,0.40885]
[1728296708703,0.4741,2446.6,2446.0,3.7173]
[1728296708899,0.4741,2446.6,2446.3,3.2078]
[1728296709099,0.40881,2446.5,2446.4,0.40881]
[1728296709300,0.8829,2446.6,2446.5,0.4088]
[1728296709503,0.40878,2446.7,2446.6,0.40878]
[1728296709706,0.40878,2446.7,2446.6,3.61658]
[1728296710008,0.40878,2446.7,2446.6,3.2078]
[1728296710400,3.2078,2448.5,2446.7,4.08773]
[1728296710595,1.02097,2449.1,2448.7,0.40843]
[1728296710596,0.40838,2449.1,2448.7,0.40843]
[1728296710797,0.9487,2449.2,2448.5,9.3878]
[1728296711003,0.40837,2449.1,2448.8,3.2078]
[1728296711301,0.9487,2449.2,2448.8,3.2078]
[1728296711608,0.9487,2449.2,2448.9,0.40839]
[1728296712104,0.33572152,2449.2,2449.1,3.2078]
[1728296713106,4.04254,2450.1,2449.4,0.40831]
[1728296713107,0.40823,2450.0,2449.4,0.40831]
[1728296713308,0.90621,2450.1,2449.6,3.2078]
[1728296713506,0.498,2450.1,2449.6,3.2078]